[Event "DVM U20 2019"]
[Site "Braunschweig"]
[Date "2019.12.29"]
[Round "5"]
[White "Gabler, Eric"]
[Black "Hoffmann, Lennard"]
[Result "*"]
[ECO "D05"]
[WhiteElo "2064"]
[BlackElo "2059"]
[Annotator "NA"]
[PlyCount "65"]
[EventDate "2019.12.27"]
[EventType "team-tourn"]
[EventRounds "7"]
[EventCountry "GER"]
[SourceTitle "playchess.com"]
[Source "ChessBase"]
[SourceQuality "1"]
[WhiteTeam "SC Bavaria Regensburg"]
[BlackTeam "SG Aufbau Elbe Magdeburg"]
[TimeControl "40/5400+30:1800+30"]

1. d4 {[%emt 0:00:00]} Nf6 {[%emt 0:00:00]} 2. Nf3 {[%emt 0:00:00]} d5 {[%emt 0:00:12]} 3. e3 {[%emt 0:00:00]} e6 {[%emt 0:00:24] unterminated} 4. b3 {[%emt 0:00:44] unterminated} c5 {[%emt 0:01:52] unterminated} 5. Bb2 {[%emt 0:00:33] unterminated} Bd6 {[%emt 0:05:03]} 6. Bd3 {[%emt 0:00:25] unterminated} O-O {[%emt 0:01:11]} 7. O-O {[%emt 0:00:12] unterminated} Nbd7 {[%emt 0:03:11] unterminated} 8. Nbd2 {[%emt 0:04:11] unterminated} Re8 {[%emt 0:05:58] unterminated unterminated. D05: Colle System with ...e6} (8... b6 9. Ne5 Bb7 10. f4 cxd4 11. exd4 Ne4 12. Qe2 f5 13. Nxe4 fxe4 14. Bb5 Nxe5 15. fxe5 Bc7 16. Ba3 Rf5 17. Qg4 Qg5 18. Qxg5 Rxg5 {1-0 (28) Dzagnidze,N (2522)-Lei,T (2528) Riadh 2017}) 9. Ne5 {[%emt 0:01:47] unterminated} Qc7 {[%emt 0:01:47] unterminated} 10. f4 {[%emt 0:07:47] unterminated} Rb8 {[%emt 0:04:32] unterminated} 11. Qe2 {[%emt 0:07:45] unterminated} a6 {[%emt 0:04:58]} 12. a4 {[%emt 0:00:10] unterminated} Nf8 $146 {[%emt 0:04:04] unterminated} ({Predecessor:} 12... cxd4 13. exd4 Nf8 14. Ndf3 {1-0 (45) Karimov,A (2168)-Lei,K (1544) Ashkhabad 2017}) 13. Rf3 {[%emt 0:12:48] unterminated} Re7 {[%emt 0:33:16] unterminated} 14. Rh3 {[%emt 0:02:24] unterminated} b5 {[%emt 0:05:21] unterminated} 15. axb5 {[%emt 0:03:02]} axb5 {[%emt 0:00:12] unterminated} 16. dxc5 {[%emt 0:06:32] unterminated} Qxc5 {[%emt 0:02:41] unterminated} 17. g4 {[%emt 0:02:02] unterminated} Bb7 {[%emt 0:09:15]} 18. Bd4 {[%emt 0:00:34] unterminated} Qc7 {[%emt 0:00:48]} 19. g5 {[%emt 0:04:08] unterminated} Ne8 $18 {[%emt 0:04:26]} 20. c3 {[%emt 0:21:19]} f6 {[%emt 0:05:42]} 21. Qh5 {[%emt 0:06:22]} f5 {[%emt 0:01:56]} 22. g6 {[%emt 0:02:18]} Nf6 {[%emt 0:00:53]} 23. gxh7+ {[%emt 0:00:57]} N8xh7 {[%emt 0:00:08]} 24. Qh4 {[%emt 0:02:42]} b4 {[%emt 0:00:37]} 25. cxb4 {[%emt 0:00:54]} Bxb4 {[%emt 0:00:33]} 26. Ndf3 {[%emt 0:00:13]} Bc3 {[%emt 0:01:34]} 27. Rc1 {[%emt 0:01:55]} Bxd4 {[%emt 0:00:13]} 28. Rxc7 {[%emt 0:00:07]} Bxe3+ {[%emt 0:00:13]} 29. Kf1 {[%emt 0:00:58] unterminated} Rxc7 {[%emt 0:00:30]} 30. Ng5 {[%emt 0:00:50] unterminated} Bxf4 {[%emt 0:02:00] unterminated} 31. Qxf4 {[%emt 0:01:05] unterminated} Nxg5 {[%emt 0:00:59]} 32. Qxg5 {unterminated} Bc8 {unterminated} 33. Be2 {[%emt 0:04:35] unterminated} *

[Event "DVM U20 2019"]
[Site "Braunschweig"]
[Date "2019.12.29"]
[Round "5"]
[White "Garbuz, Vitaliy"]
[Black "Brunner, Wilken"]
[Result "1/2-1/2"]
[ECO "C05"]
[WhiteElo "2064"]
[BlackElo "1978"]
[Annotator "NA"]
[PlyCount "51"]
[EventDate "2019.12.27"]
[EventType "team-tourn"]
[EventRounds "7"]
[EventCountry "GER"]
[SourceTitle "playchess.com"]
[Source "ChessBase"]
[SourceQuality "1"]
[WhiteTeam "SF Brackel"]
[BlackTeam "Karlsruher SF"]
[TimeControl "40/5400+30:1800+30"]

1. e4 {[%emt 0:00:00]} e6 {[%emt 0:00:00]} 2. d4 {[%emt 0:00:00]} d5 {[%emt 0:00:00]} 3. Nd2 {[%emt 0:00:00]} Nf6 {[%emt 0:00:00]} 4. e5 {[%emt 0:00:00]} Nfd7 {[%emt 0:00:00]} 5. f4 {[%emt 0:00:00]} c5 {[%emt 0:00:00]} 6. c3 {[%emt 0:00:05]} Nc6 {[%emt 0:00:00]} 7. Ndf3 {[%emt 0:00:05]} Qb6 {[%emt 0:00:02]} 8. g3 {[%emt 0:00:06]} f6 {[%emt 0:00:20] unterminated} 9. Bd3 {[%emt 0:00:42]} cxd4 {[%emt 0:01:13] unterminated} 10. cxd4 {[%emt 0:00:17]} Bb4+ {[%emt 0:00:07] unterminated} 11. Kf1 {[%emt 0:00:18] unterminated} O-O {[%emt 0:01:46]} 12. Kg2 {[%emt 0:00:10] unterminated} Kh8 {[%emt 0:02:45]} 13. Bc2 {[%emt 0:01:35]} Be7 {[%emt 0:23:12]} 14. h4 {[%emt 0:01:37]} fxe5 {[%emt 0:05:51]} 15. fxe5 {[%emt 0:00:19]} Ndxe5 {[%emt 0:00:06]} 16. dxe5 {[%emt 0:00:48]} Nxe5 {[%emt 0:00:17] unterminated} 17. Nxe5 {[%emt 0:04:37] unterminated} Rf2+ {[%emt 0:01:29] unterminated} 18. Kh3 $18 {[%emt 0:01:18]} Qc7 {[%emt 0:01:07]} 19. Bf4 {[%emt 0:05:19]} Qxc2 {[%emt 0:00:11]} 20. Qh5 {[%emt 0:04:05]} g6 {[%emt 0:02:32]} 21. Qh6 {[%emt 0:01:20]} Kg8 {[%emt 0:02:42]} 22. Ngf3 {[%emt 0:01:07]} Rxf3 {[%emt 0:10:24]} 23. Nxf3 {[%emt 0:02:23]} e5+ {[%emt 0:02:09]} 24. g4 {[%emt 0:00:06]} Bxg4+ {[%emt 0:10:35]} 25. Kxg4 {[%emt 0:00:35]} exf4 {[%emt 0:00:08] normal} 26. Kh3 {[%emt 0:03:37] normal} 1/2-1/2

[Event "DVM U20 2019"]
[Site "Braunschweig"]
[Date "2019.12.29"]
[Round "5"]
[White "Kracht, Raphael"]
[Black "Wegmer, Leon"]
[Result "1/2-1/2"]
[ECO "B12"]
[WhiteElo "2031"]
[BlackElo "1939"]
[Annotator "NA"]
[PlyCount "111"]
[EventDate "2019.12.27"]
[EventType "team-tourn"]
[EventRounds "7"]
[EventCountry "GER"]
[SourceTitle "playchess.com"]
[Source "ChessBase"]
[SourceQuality "1"]
[WhiteTeam "SF Brackel"]
[BlackTeam "Karlsruher SF"]
[TimeControl "40/5400+30:1800+30"]

1. e4 {[%emt 0:00:00]} c6 {[%emt 0:00:00]} 2. d4 {[%emt 0:00:00]} d5 3. e5 {[%emt 0:00:00]} Bf5 {[%emt 0:00:00]} 4. Nf3 {[%emt 0:00:00]} e6 {[%emt 0:00:00]} 5. Be2 {[%emt 0:00:00]} Ne7 {[%emt 0:00:00]} 6. O-O {[%emt 0:00:06]} c5 {[%emt 0:00:19] unterminated} 7. Be3 {[%emt 0:00:51]} Nec6 {[%emt 0:00:11] unterminated} 8. Nbd2 {[%emt 0:15:39] unterminated} Nd7 {[%emt 0:06:03] unterminated} 9. c4 {[%emt 0:05:07] unterminated} cxd4 {[%emt 0:02:27]} 10. Nxd4 {[%emt 0:00:18] unterminated} Nxd4 {[%emt 0:00:39]} 11. Bxd4 $14 {[%emt 0:00:06]} Bc5 {[%emt 0:02:11]} 12. Nb3 {[%emt 0:01:22]} Bxd4 {[%emt 0:01:31]} 13. Nxd4 {[%emt 0:02:55]} dxc4 {[%emt 0:03:24]} 14. Nxf5 {[%emt 0:00:35]} exf5 {[%emt 0:00:02]} 15. Bxc4 {[%emt 0:01:25]} O-O {[%emt 0:01:23]} 16. e6 {[%emt 0:01:11]} Ne5 17. exf7+ {[%emt 0:01:50]} Nxf7 {[%emt 0:02:20]} 18. Qf3 {[%emt 0:01:23]} Qf6 {[%emt 0:23:35]} 19. Qxb7 {[%emt 0:00:46]} Rfb8 {[%emt 0:00:28]} 20. Qf3 {[%emt 0:02:16]} Rc8 {[%emt 0:03:14]} 21. b3 {[%emt 0:00:56]} Kh8 {[%emt 0:01:22]} 22. Bxf7 {[%emt 0:04:27]} Qxf7 {[%emt 0:00:01]} 23. Rac1 {[%emt 0:00:16]} g6 {[%emt 0:01:36]} 24. h3 {[%emt 0:03:34]} Kg8 {[%emt 0:02:41]} 25. Rfd1 {[%emt 0:01:53]} a5 {[%emt 0:01:21]} 26. Rc6 {[%emt 0:06:44]} Rxc6 {[%emt 0:02:55]} 27. Qxc6 {[%emt 0:00:05]} Ra7 {[%emt 0:03:39]} 28. Rd8+ {[%emt 0:04:07]} Kg7 {[%emt 0:00:01]} 29. Qc3+ {[%emt 0:00:26]} Kh6 {[%emt 0:00:09]} 30. Qd2+ {[%emt 0:01:27]} Kg7 {[%emt 0:03:19]} 31. Qd4+ {[%emt 0:00:15]} Kh6 {[%emt 0:00:22]} 32. Qf4+ {[%emt 0:08:35]} Kg7 {[%emt 0:00:10]} 33. Qe5+ {[%emt 0:00:08]} Kh6 {[%emt 0:00:30]} 34. g3 {[%emt 0:04:21]} Qe7 {[%emt 0:07:13]} 35. Qxe7 {[%emt 0:05:25]} Rxe7 {[%emt 0:00:01]} 36. Ra8 {[%emt 0:00:08]} Re5 {[%emt 0:00:06]} 37. Ra7 {[%emt 0:00:30]} g5 {[%emt 0:01:12]} 38. Kg2 {[%emt 0:05:16]} Rc5 {[%emt 0:01:38]} 39. Kf3 {[%emt 0:12:52]} Rc3+ {[%emt 0:00:06]} 40. Kg2 {[%emt 0:00:04]} Rc5 {[%emt 0:00:02]} 41. a4 {[%emt 0:13:40]} Kg6 {[%emt 0:05:38]} 42. Rb7 {[%emt 0:01:12]} Rc3 {[%emt 0:00:33]} 43. Kf1 {[%emt 0:03:01]} f4 {[%emt 0:01:29]} 44. gxf4 {[%emt 0:04:05]} gxf4 {[%emt 0:00:02]} 45. Kg2 {[%emt 0:00:53]} h6 {[%emt 0:03:07]} 46. Rb5 {[%emt 0:00:12]} Rd3 {[%emt 0:00:26]} 47. Kf1 {[%emt 0:11:58]} Rxh3 {[%emt 0:01:11]} 48. Rxa5 {[%emt 0:00:58]} Rxb3 {[%emt 0:00:06]} 49. Kg2 {[%emt 0:00:14]} Ra3 {[%emt 0:01:16]} 50. Ra8 {[%emt 0:00:04]} Kg7 {[%emt 0:06:41]} 51. a5 {[%emt 0:00:08]} Kh7 {[%emt 0:00:08]} 52. a6 {[%emt 0:00:05]} Kg7 {[%emt 0:00:03]} 53. a7 {[%emt 0:00:29]} Kh7 {[%emt 0:00:03]} 54. f3 {[%emt 0:00:06]} h5 {[%emt 0:01:41]} 55. Kh2 {[%emt 0:00:23]} Kg7 {[%emt 0:00:10]} 56. Kg2 {normal} 1/2-1/2

[Event "DVM U20 2019"]
[Site "Braunschweig"]
[Date "2019.12.29"]
[Round "5"]
[White "McPherson, Elisha"]
[Black "Reimer, Philip"]
[Result "0-1"]
[ECO "B23"]
[WhiteElo "1975"]
[BlackElo "2065"]
[Annotator "NA"]
[PlyCount "60"]
[EventDate "2019.12.27"]
[EventType "team-tourn"]
[EventRounds "7"]
[EventCountry "GER"]
[SourceTitle "playchess.com"]
[Source "ChessBase"]
[SourceQuality "1"]
[WhiteTeam "SF Augsburg"]
[BlackTeam "SK Lehrte 1919"]
[TimeControl "40/5400+30:1800+30"]

1. e4 {[%emt 0:00:00]} c5 {[%emt 0:00:00]} 2. Nc3 {[%emt 0:00:00]} Nc6 {[%emt 0:00:00]} 3. f4 {[%emt 0:00:00]} g6 {[%emt 0:00:00]} 4. Nf3 {[%emt 0:00:00]} Bg7 {[%emt 0:00:00]} 5. Bb5 {[%emt 0:00:30]} Nd4 {[%emt 0:02:17]} 6. O-O {[%emt 0:00:08]} Nxb5 {[%emt 0:17:33]} 7. Nxb5 {[%emt 0:00:07]} d6 {[%emt 0:01:47]} 8. Qe1 {[%emt 0:16:30]} a6 {[%emt 0:09:31]} 9. Nc3 {[%emt 0:00:06]} Nf6 {[%emt 0:10:04]} 10. d3 {[%emt 0:02:09]} b5 {[%emt 0:10:55]} 11. e5 {[%emt 0:12:36]} dxe5 {[%emt 0:00:35]} 12. fxe5 {[%emt 0:00:11]} Nd5 {[%emt 0:00:37]} 13. Ng5 {[%emt 0:20:21]} O-O {[%emt 0:07:28]} 14. e6 {[%emt 0:01:23]} f6 {[%emt 0:00:13]} 15. Nf7 {[%emt 0:00:25]} Rxf7 {[%emt 0:00:05]} 16. exf7+ {[%emt 0:00:06]} Kxf7 {[%emt 0:00:04]} 17. Ne4 {[%emt 0:08:24]} Qb6 {[%emt 0:23:27]} 18. c3 {[%emt 0:14:25]} Qc6 {[%emt 0:06:57]} 19. c4 {[%emt 0:05:36]} bxc4 {[%emt 0:02:28]} 20. dxc4 {[%emt 0:00:51]} Nb4 {[%emt 0:00:23]} 21. Ng5+ {[%emt 0:00:42]} Ke8 {[%emt 0:05:15]} 22. Qc3 {[%emt 0:03:44]} Bb7 {[%emt 0:00:36]} 23. Rf2 {[%emt 0:05:20]} Rd8 {[%emt 0:00:06]} 24. Nf3 {[%emt 0:00:39]} Rd3 {[%emt 0:00:52]} 25. Qe1 {[%emt 0:00:46]} Qd7 {[%emt 0:00:45]} 26. Be3 {[%emt 0:01:40]} Qd6 {[%emt 0:00:28]} 27. a3 {[%emt 0:00:40]} Nc6 {[%emt 0:00:01]} 28. Rd2 {[%emt 0:01:28]} Rxd2 {[%emt 0:00:17]} 29. Qxd2 {[%emt 0:00:10]} Qxd2 {[%emt 0:00:59]} 30. Nxd2 {[%emt 0:00:02]} Nd4 {[%emt 0:00:19] normal} 0-1

[Event "DVM U20 2019"]
[Site "Braunschweig"]
[Date "2019.12.29"]
[Round "5"]
[White "Wiegersma, Justus"]
[Black "Waffenschmidt, Lars"]
[Result "0-1"]
[ECO "A36"]
[WhiteElo "1975"]
[BlackElo "1885"]
[Annotator "NA"]
[PlyCount "43"]
[EventDate "2019.12.27"]
[EventType "team-tourn"]
[EventRounds "7"]
[EventCountry "GER"]
[SourceTitle "playchess.com"]
[Source "ChessBase"]
[SourceQuality "1"]
[WhiteTeam "SK Turm Kleve"]
[BlackTeam "SK Bebenhausen"]
[TimeControl "40/5400+30:1800+30"]

1. c4 {[%emt 0:00:00]} c5 {[%emt 0:00:15]} 2. g3 {[%emt 0:00:08]} Nc6 {[%emt 0:00:17]} 3. Bg2 {[%emt 0:00:12]} g6 {[%emt 0:00:20]} 4. Nc3 {[%emt 0:00:11]} Bg7 {[%emt 0:00:22]} 5. a3 {[%emt 0:00:12]} b6 {[%emt 0:02:26]} 6. Rb1 {[%emt 0:03:30]} Bb7 {[%emt 0:00:38]} 7. b4 {[%emt 0:01:10]} d6 {[%emt 0:01:31]} 8. b5 {[%emt 0:18:32]} Na5 {[%emt 0:02:23]} 9. Bxb7 {[%emt 0:02:10]} Nxb7 {[%emt 0:00:08]} 10. Qb3 {[%emt 0:00:10]} Na5 {[%emt 0:27:59]} 11. Qa2 {[%emt 0:01:14]} Bxc3 {[%emt 0:06:37]} 12. dxc3 {[%emt 0:00:02]} Nf6 {[%emt 0:03:02]} 13. Nf3 {[%emt 0:04:00]} Qd7 {[%emt 0:07:58]} 14. O-O {[%emt 0:01:16]} Qe6 {[%emt 0:03:46]} 15. Bh6 {[%emt 0:01:32]} Ne4 {[%emt 0:02:13]} 16. Rbc1 {[%emt 0:01:11]} Nxc4 {[%emt 0:04:55]} 17. Rfd1 {[%emt 0:00:52]} O-O-O {[%emt 0:04:22]} 18. a4 {[%emt 0:01:00]} d5 {[%emt 0:02:23]} 19. a5 {[%emt 0:00:37]} Nxa5 {[%emt 0:01:08]} 20. Nd2 {[%emt 0:01:36]} Rd7 {[%emt 0:05:35] normal} 21. Be3 {[%emt 0:01:13] normal} Nxd2 {[%emt 0:01:22] normal} 22. Bxd2 {[%emt 0:01:38] normal} 0-1

[Event "DVM U20 2019"]
[Site "Braunschweig"]
[Date "2019.12.29"]
[Round "5"]
[White "Wiesner, Alexander"]
[Black "Elier, Ali"]
[Result "0-1"]
[ECO "D35"]
[WhiteElo "1960"]
[BlackElo "2032"]
[Annotator "NA"]
[PlyCount "42"]
[EventDate "2019.12.27"]
[EventType "team-tourn"]
[EventRounds "7"]
[EventCountry "GER"]
[SourceTitle "playchess.com"]
[Source "ChessBase"]
[SourceQuality "1"]
[WhiteTeam "Karlsruher SF"]
[BlackTeam "SF Brackel"]
[TimeControl "40/5400+30:1800+30"]

1. d4 {[%emt 0:00:00]} Nf6 {[%emt 0:00:54]} 2. c4 {[%emt 0:00:00]} e6 {[%emt 0:03:37]} 3. Nc3 {[%emt 0:00:00]} d5 {[%emt 0:00:03]} 4. cxd5 {[%emt 0:00:00]} exd5 {[%emt 0:00:05]} 5. Bg5 {[%emt 0:00:00]} Be7 {[%emt 0:06:42]} 6. e3 {[%emt 0:00:36]} Bf5 {[%emt 0:08:08]} 7. Bxf6 {[%emt 0:10:32]} Bxf6 {[%emt 0:03:29]} 8. Qb3 {[%emt 0:00:04]} Be6 {[%emt 0:07:16]} 9. Qxb7 {[%emt 0:00:20]} Nd7 {[%emt 0:00:02]} 10. Qb3 {[%emt 0:41:47]} Rb8 {[%emt 0:03:04]} 11. Qc2 {[%emt 0:01:42]} c5 {[%emt 0:04:03]} 12. Nge2 {[%emt 0:02:28]} Qb6 {[%emt 0:07:16]} 13. O-O-O {[%emt 0:07:12]} O-O {[%emt 0:03:14]} 14. dxc5 {[%emt 0:10:06]} Nxc5 {[%emt 0:00:42]} 15. Nd4 {[%emt 0:00:12]} Rfc8 {[%emt 0:01:37]} 16. Rd2 {[%emt 0:08:06]} Ne4 {[%emt 0:06:39]} 17. Rd3 {[%emt 0:00:05]} Nc5 {[%emt 0:02:17]} 18. Rd2 {[%emt 0:00:06]} Bxd4 {[%emt 0:02:06]} 19. Rxd4 {[%emt 0:04:13] normal} Bf5 {[%emt 0:01:16] normal} 20. Qxf5 {[%emt 0:02:46]} Qxb2+ {[%emt 0:00:24] normal} 21. Kd1 {[%emt 0:00:04]} Ne4 0-1

[Event "DVM U20 2019"]
[Site "Braunschweig"]
[Date "2019.12.29"]
[Round "5"]
[White "Meyling, Lennart"]
[Black "Doerp, Max Marian"]
[Result "1-0"]
[ECO "D43"]
[WhiteElo "1955"]
[BlackElo "1767"]
[Annotator "NA"]
[PlyCount "101"]
[EventDate "2019.12.27"]
[EventType "team-tourn"]
[EventRounds "7"]
[EventCountry "GER"]
[SourceTitle "playchess.com"]
[Source "ChessBase"]
[SourceQuality "1"]
[WhiteTeam "Hamburger SK"]
[BlackTeam "Lübecker SV"]
[TimeControl "40/5400+30:1800+30"]

1. d4 {[%emt 0:00:00]} d5 {[%emt 0:00:00]} 2. c4 {[%emt 0:00:00]} c6 {[%emt 0:00:00]} 3. Nc3 {[%emt 0:00:00]} Nf6 {[%emt 0:00:01]} 4. Nf3 {[%emt 0:00:09]} e6 {[%emt 0:00:26]} 5. cxd5 {[%emt 0:00:08] unterminated} exd5 {[%emt 0:00:46]} 6. Bg5 {[%emt 0:00:11] unterminated} h6 {[%emt 0:03:32]} 7. Bh4 {[%emt 0:00:08] unterminated} Bf5 {[%emt 0:02:00]} 8. Qb3 $11 {[%emt 0:00:08]} Qb6 {[%emt 0:11:02]} 9. Qxb6 {[%emt 0:01:13]} axb6 {[%emt 0:00:10]} 10. Bxf6 {[%emt 0:00:05]} gxf6 {[%emt 0:00:08]} 11. e3 {[%emt 0:00:45]} Na6 {[%emt 0:09:58]} 12. Kd2 {[%emt 0:00:20]} Rg8 {[%emt 0:01:54]} 13. Nh4 {[%emt 0:03:59]} Be6 {[%emt 0:16:13]} 14. f3 {[%emt 0:05:02]} Be7 {[%emt 0:06:15]} 15. g3 {[%emt 0:02:06]} Nc7 {[%emt 0:06:37]} 16. Bd3 {[%emt 0:01:15]} c5 {[%emt 0:02:08]} 17. Nb5 {[%emt 0:05:46]} Kd7 {[%emt 0:04:44]} 18. Nf5 {[%emt 0:07:17]} Bf8 {[%emt 0:05:42]} 19. Rhc1 {[%emt 0:06:30]} c4 {[%emt 0:05:04]} 20. Nxc7 {[%emt 0:00:05]} Bb4+ {[%emt 0:00:58]} 21. Kd1 {[%emt 0:00:11]} Kxc7 {[%emt 0:00:44]} 22. Nh4 {[%emt 0:02:13]} Kd7 {[%emt 0:04:40]} 23. Bf5 {[%emt 0:00:31]} Rae8 {[%emt 0:08:23]} 24. b3 {[%emt 0:01:52]} Ba3 {[%emt 0:01:24]} 25. Rc2 {[%emt 0:00:07]} b5 {[%emt 0:01:02]} 26. bxc4 {[%emt 0:00:07]} bxc4 {[%emt 0:02:19]} 27. Rb1 {[%emt 0:01:29]} Rb8 {[%emt 0:03:16]} 28. e4 {[%emt 0:00:39]} dxe4 {[%emt 0:02:59]} 29. fxe4 {[%emt 0:00:12]} b5 {[%emt 0:00:22]} 30. Rc3 {[%emt 0:01:06]} Bd6 {[%emt 0:01:35]} 31. a4 {[%emt 0:00:25]} bxa4 {[%emt 0:00:21]} 32. Rxb8 {[%emt 0:00:56]} Rxb8 {[%emt 0:00:00]} 33. Rxc4 {[%emt 0:00:27]} a3 {[%emt 0:01:02]} 34. Kc2 {[%emt 0:04:41]} Rb2+ {[%emt 0:00:16]} 35. Kc1 {[%emt 0:01:34]} Rxh2 {[%emt 0:00:08]} 36. Ra4 {[%emt 0:00:17]} Kc6 {[%emt 0:01:13]} 37. Nf3 {[%emt 0:02:19]} Rh1+ {[%emt 0:00:17]} 38. Kc2 {[%emt 0:00:06]} Bxf5 {[%emt 0:00:48]} 39. exf5 {[%emt 0:00:30]} Kb5 {[%emt 0:00:27]} 40. Ra7 {[%emt 0:00:35]} Bxg3 {[%emt 0:00:29]} 41. Rxa3 {[%emt 0:30:20]} Bf4 {[%emt 0:05:39]} 42. Kd3 {[%emt 0:00:00]} Kc6 {[%emt 0:16:42]} 43. Ke4 {[%emt 0:00:00]} Bg5 {[%emt 0:02:01]} 44. Ra7 {[%emt 0:00:00]} Kd6 {[%emt 0:01:30]} 45. Rxf7 {[%emt 0:00:00]} h5 {[%emt 0:01:17]} 46. Rg7 {[%emt 0:00:00]} h4 {[%emt 0:04:09]} 47. Nxg5 {[%emt 0:00:00]} fxg5 {[%emt 0:00:08]} 48. Rxg5 {[%emt 0:00:00]} h3 {[%emt 0:00:49]} 49. Rg6+ {[%emt 0:00:00]} Ke7 {[%emt 0:01:31]} 50. Rh6 {[%emt 0:00:00] normal} h2 {[%emt 0:00:39]} 51. Kd5 {[%emt 0:00:00] normal} 1-0

[Event "DVM U20 2019"]
[Site "Braunschweig"]
[Date "2019.12.29"]
[Round "5"]
[White "Gorainow, Nikita"]
[Black "Düro, Liam"]
[Result "1-0"]
[ECO "B18"]
[WhiteElo "1946"]
[BlackElo "1841"]
[Annotator "NA"]
[PlyCount "46"]
[EventDate "2019.12.27"]
[EventType "team-tourn"]
[EventRounds "7"]
[EventCountry "GER"]
[SourceTitle "playchess.com"]
[Source "ChessBase"]
[SourceQuality "1"]
[WhiteTeam "SF Essen-Katernberg"]
[BlackTeam "SG Trier"]
[TimeControl "40/5400+30:1800+30"]

1. e4 c6 2. d4 d5 3. Nc3 dxe4 4. Nxe4 Bf5 5. Ng3 Bg6 6. Nh3 {unterminated} h6 (6... Nf6 $11 {remains equal.}) 7. Nf4 $14 Bh7 8. Bc4 Nf6 9. O-O g5 10. Nfh5 Nbd7 11. f4 Nxh5 12. Nxh5 e6 {[%emt 0:56:11]} 13. c3 {[%emt 1:19:40]} Bg6 {[%emt 0:10:47]} 14. Ng3 {[%emt 0:02:25]} gxf4 {[%emt 0:02:56]} 15. Bxf4 {[%emt 0:00:09]} Qb6 {[%emt 0:01:43]} 16. Qe2 {[%emt 0:01:34]} O-O-O {[%emt 0:03:57]} 17. b4 {[%emt 0:05:37]} h5 {[%emt 0:02:09]} 18. a4 {[%emt 0:00:23]} e5 {[%emt 0:02:50]} 19. a5 {[%emt 0:00:49]} Qc7 {[%emt 0:00:13]} 20. dxe5 {[%emt 0:00:09]} Bh6 {[%emt 0:02:51]} 21. Bxh6 {[%emt 0:02:21]} Rxh6 {[%emt 0:00:26]} 22. Nf5 {[%emt 0:01:00]} Bxf5 {[%emt 0:00:59]} 23. Rxf5 {[%emt 0:00:04] normal} f6 {[%emt 0:01:43]} 1-0

[Event "DVM U20 2019"]
[Site "Braunschweig"]
[Date "2019.12.29"]
[Round "5"]
[White "Tiedemann, Fin Niklas"]
[Black "Engel, Robert"]
[Result "1/2-1/2"]
[ECO "B24"]
[WhiteElo "1936"]
[BlackElo "2075"]
[Annotator "NA"]
[PlyCount "83"]
[EventDate "2019.12.27"]
[EventType "team-tourn"]
[EventRounds "7"]
[EventCountry "GER"]
[SourceTitle "playchess.com"]
[Source "ChessBase"]
[SourceQuality "1"]
[WhiteTeam "Lübecker SV"]
[BlackTeam "Hamburger SK"]
[TimeControl "40/5400+30:1800+30"]

1. e4 {[%emt 0:00:00]} c5 {[%emt 0:00:00]} 2. Nc3 {[%emt 0:01:16]} Nc6 {[%emt 0:00:00]} 3. g3 {[%emt 0:00:02]} g6 {[%emt 0:00:02]} 4. Bg2 {[%emt 0:00:10]} Bg7 {[%emt 0:00:04]} 5. d3 {[%emt 0:00:08]} e6 {[%emt 0:00:06]} 6. Be3 {[%emt 0:00:49] unterminated} d6 {[%emt 0:01:10] unterminated} 7. Qd2 {[%emt 0:00:44] unterminated} Nd4 {[%emt 0:02:03] unterminated} 8. Nd1 {[%emt 0:01:23] unterminated} Rb8 {[%emt 0:03:24]} 9. c3 {[%emt 0:00:25]} Nc6 {[%emt 0:00:05] unterminated} 10. Ne2 {[%emt 0:06:48] unterminated} b5 {[%emt 0:04:37] unterminated} 11. d4 {[%emt 0:11:38]} cxd4 {[%emt 0:00:25] unterminated} 12. cxd4 {[%emt 0:04:55] unterminated} Qa5 $14 {[%emt 0:04:32]} 13. d5 {[%emt 0:12:36]} Qxd2+ {[%emt 0:03:18]} 14. Kxd2 {[%emt 0:00:19]} exd5 {[%emt 0:00:09]} 15. exd5 {[%emt 0:00:18]} Ne5 {[%emt 0:02:43]} 16. Bxa7 {[%emt 0:03:05]} Nc4+ {[%emt 0:06:45]} 17. Kc1 {[%emt 0:02:48]} Rb7 {[%emt 0:02:41]} 18. Bd4 {[%emt 0:00:25]} Nf6 {[%emt 0:00:37]} 19. b3 {[%emt 0:06:16]} Na3 {[%emt 0:04:16]} 20. Ne3 {[%emt 0:02:23]} O-O {[%emt 0:10:02]} 21. Kd2 {[%emt 0:10:16]} b4 {[%emt 0:03:14]} 22. Nc4 {[%emt 0:04:41]} Nxc4+ {[%emt 0:03:34]} 23. bxc4 {[%emt 0:00:11]} Bf5 {[%emt 0:08:12]} 24. f3 {[%emt 0:07:37]} Rc8 {[%emt 0:13:51]} 25. g4 {[%emt 0:01:31]} Bd7 {[%emt 0:02:03]} 26. g5 {[%emt 0:05:33]} Nh5 {[%emt 0:01:49]} 27. Rhc1 {[%emt 0:04:00]} b3 {[%emt 0:13:06]} 28. Bxg7 {[%emt 0:09:48]} b2 {[%emt 0:03:34]} 29. Bxb2 {[%emt 0:00:11]} Rxb2+ {[%emt 0:00:01]} 30. Rc2 {[%emt 0:01:14]} Rxc2+ {[%emt 0:00:02]} 31. Kxc2 {[%emt 0:00:06]} Rxc4+ {[%emt 0:00:03]} 32. Kb3 {[%emt 0:01:25]} Rh4 {[%emt 0:04:27]} 33. h3 {[%emt 0:01:00]} Bb5 {[%emt 0:00:34]} 34. Nc3 {[%emt 0:01:16]} Bc4+ {[%emt 0:00:03]} 35. Kc2 {[%emt 0:00:51]} Nf4 {[%emt 0:01:12]} 36. Bf1 {[%emt 0:01:02]} Nxd5 {[%emt 0:01:17]} 37. Nxd5 {[%emt 0:00:29]} Bxd5 {[%emt 0:00:04]} 38. Bg2 {[%emt 0:00:27]} Rh5 {[%emt 0:02:24]} 39. a4 {[%emt 0:00:32]} Rxg5 {[%emt 0:00:05]} 40. Bh1 {[%emt 0:00:38]} Bc4 {[%emt 0:02:41]} 41. Kc3 {[%emt 0:02:51]} Ba6 {[%emt 0:03:17]} 42. Kb4 {[%emt 0:13:57] normal} 1/2-1/2